[Event "Titled Tuesday Blitz November 07 Late 2023"]
[White "Rastbod, Ali"]
[Black "Makarian, Rudik"]
[WhiteFideId "12567477"]
[BlackFideId "44105681"]
[WhiteElo "2768"]
[BlackElo "2989"]
[Result "1/2-1/2"]
[Round "11"]
[TimeControl "180+1"]
[Date "2023.11.07"]
[WhiteClock "0:00:03"]
[BlackClock "0:00:06"]
[Board "7"]

1. e4 {[%clk 0:03:00]}  c5 {[%clk 0:02:58]} 2. Nf3 {[%clk 0:03:00]}  d6 {[%clk 0:02:59]} 3. g3 {[%clk 0:02:49]}  Nf6 {[%clk 0:02:59]} 4. Qe2 {[%clk 0:02:50]}  Nc6 {[%clk 0:02:58]} 5. h3 {[%clk 0:02:50]}  e6 {[%clk 0:02:54]} 6. Bg2 {[%clk 0:02:50]}  Be7 {[%clk 0:02:54]} 7. O-O {[%clk 0:02:51]}  O-O {[%clk 0:02:55]} 8. c3 {[%clk 0:02:51]}  Rb8 {[%clk 0:02:21]} 9. d4 {[%clk 0:02:50]}  b5 {[%clk 0:02:21]} 10. dxc5 {[%clk 0:02:40]}  dxc5 {[%clk 0:02:21]} 11. Bf4 {[%clk 0:02:29]}  Rb7 {[%clk 0:02:20]} 12. Rd1 {[%clk 0:02:19]}  Rd7 {[%clk 0:02:19]} 13. Na3 {[%clk 0:02:13]}  a6 {[%clk 0:02:19]} 14. Rxd7 {[%clk 0:02:09]}  Qxd7 {[%clk 0:02:19]} 15. Rd1 {[%clk 0:02:09]}  Qa7 {[%clk 0:02:20]} 16. e5 {[%clk 0:01:49]}  Nd5 {[%clk 0:02:19]} 17. Bg5 {[%clk 0:01:49]}  c4 {[%clk 0:02:12]} 18. Nc2 {[%clk 0:01:44]}  Bc5 {[%clk 0:02:09]} 19. h4 {[%clk 0:01:41]}  a5 {[%clk 0:02:02]} 20. h5 {[%clk 0:01:38]}  h6 {[%clk 0:02:02]} 21. Bd2 {[%clk 0:01:28]}  b4 {[%clk 0:02:02]} 22. Be1 {[%clk 0:01:29]}  b3 {[%clk 0:01:57]} 23. axb3 {[%clk 0:01:29]}  cxb3 {[%clk 0:01:58]} 24. Ncd4 {[%clk 0:01:29]}  Nxd4 {[%clk 0:01:57]} 25. Nxd4 {[%clk 0:01:30]}  a4 {[%clk 0:01:55]} 26. Qg4 {[%clk 0:01:18]}  Bxd4 {[%clk 0:01:41]} 27. Qxd4 {[%clk 0:00:59]}  Qxd4 {[%clk 0:01:40]} 28. Rxd4 {[%clk 0:00:54]}  a3 {[%clk 0:01:10]} 29. bxa3 {[%clk 0:00:53]}  b2 {[%clk 0:01:10]} 30. Be4 {[%clk 0:00:53]}  Bb7 {[%clk 0:00:54]} 31. Bb1 {[%clk 0:00:44]}  Rc8 {[%clk 0:00:38]} 32. c4 {[%clk 0:00:14]}  Nb6 {[%clk 0:00:37]} 33. c5 {[%clk 0:00:12]}  Nd5 {[%clk 0:00:25]} 34. Bb4 {[%clk 0:00:12]}  Bc6 {[%clk 0:00:09]} 35. Rd2 {[%clk 0:00:09]}  Ne7 {[%clk 0:00:10]} 36. Rxb2 {[%clk 0:00:07]}  Bf3 {[%clk 0:00:10]} 37. c6 {[%clk 0:00:05]}  Nxc6 {[%clk 0:00:09]} 38. Bd6 {[%clk 0:00:06]}  Bxh5 {[%clk 0:00:08]} 39. Be4 {[%clk 0:00:06]}  Nd4 {[%clk 0:00:07]} 40. f4 {[%clk 0:00:07]}  Bg6 {[%clk 0:00:04]} 41. Bxg6 {[%clk 0:00:04]}  fxg6 {[%clk 0:00:05]} 42. Ra2 {[%clk 0:00:03]}  Rc6 {[%clk 0:00:03]} 43. a4 {[%clk 0:00:02]}  Ra6 {[%clk 0:00:04]} 44. Kf2 {[%clk 0:00:03]}  Nc6 {[%clk 0:00:02]} 45. Ke3 {[%clk 0:00:03]}  Kf7 {[%clk 0:00:02]} 46. Ke4 {[%clk 0:00:02]}  g5 {[%clk 0:00:03]} 47. f5 {[%clk 0:00:02]}  exf5+ {[%clk 0:00:02]} 48. Kxf5 {[%clk 0:00:03]}  Nd4+ {[%clk 0:00:03]} 49. Ke4 {[%clk 0:00:03]}  Ne6 {[%clk 0:00:03]} 50. Kd5 {[%clk 0:00:03]}  Kg6 {[%clk 0:00:03]} 51. Kc4 {[%clk 0:00:03]}  h5 {[%clk 0:00:03]} 52. Kb5 {[%clk 0:00:04]}  Ra8 {[%clk 0:00:03]} 53. a5 {[%clk 0:00:04]}  h4 {[%clk 0:00:04]} 54. gxh4 {[%clk 0:00:05]}  gxh4 {[%clk 0:00:05]} 55. a6 {[%clk 0:00:05]}  Kf5 {[%clk 0:00:05]} 56. a7 {[%clk 0:00:05]}  g5 {[%clk 0:00:05]} 57. Bb8 {[%clk 0:00:06]}  g4 {[%clk 0:00:05]} 58. Rf2+ {[%clk 0:00:07]}  Ke4 {[%clk 0:00:04]} 59. Rf6 {[%clk 0:00:07]}  g3 {[%clk 0:00:03]} 60. Rxe6 {[%clk 0:00:07]}  g2 {[%clk 0:00:04]} 61. Rg6 {[%clk 0:00:07]}  h3 {[%clk 0:00:03]} 62. e6 {[%clk 0:00:08]}  h2 {[%clk 0:00:02]} 63. Bxh2 {[%clk 0:00:08]}  Rxa7 {[%clk 0:00:02]} 64. Rxg2 {[%clk 0:00:09]}  Re7 {[%clk 0:00:03]} 65. Re2+ {[%clk 0:00:08]}  Kf5 {[%clk 0:00:03]} 66. Kc5 {[%clk 0:00:04]}  Rxe6 {[%clk 0:00:04]} 67. Rf2+ {[%clk 0:00:05]}  Kg6 {[%clk 0:00:04]} 68. Bd6 {[%clk 0:00:05]}  Re1 {[%clk 0:00:04]} 69. Kd5 {[%clk 0:00:04]}  Rb1 {[%clk 0:00:05]} 70. Ke6 {[%clk 0:00:05]}  Rb6 {[%clk 0:00:05]} 71. Rg2+ {[%clk 0:00:04]}  Kh6 {[%clk 0:00:05]} 72. Ke7 {[%clk 0:00:04]}  Kh5 {[%clk 0:00:05]} 73. Be5 {[%clk 0:00:03]}  Rg6 {[%clk 0:00:05]} 74. Rf2 {[%clk 0:00:03]}  Kg4 {[%clk 0:00:05]} 75. Bf6 {[%clk 0:00:02]}  Kg3 {[%clk 0:00:04]} 76. Rf1 {[%clk 0:00:02]}  Rg4 {[%clk 0:00:05]} 77. Ke6 {[%clk 0:00:02]}  Ra4 {[%clk 0:00:04]} 78. Rf5 {[%clk 0:00:03]}  Ra6+ {[%clk 0:00:04]} 79. Kf7 {[%clk 0:00:03]}  Kg4 {[%clk 0:00:05]} 80. Rf1 {[%clk 0:00:03]}  Kg3 {[%clk 0:00:05]} 81. Rg1+ {[%clk 0:00:03]}  Kf3 {[%clk 0:00:05]} 82. Rf1+ {[%clk 0:00:03]}  Ke4 {[%clk 0:00:06]} 83. Rc1 {[%clk 0:00:04]}  Kd3 {[%clk 0:00:06]} 84. Kg6 {[%clk 0:00:04]}  Ra4 {[%clk 0:00:06]} 85. Rg1 {[%clk 0:00:04]}  Ra8 {[%clk 0:00:06]} 86. Kf5 {[%clk 0:00:04]}  Rf8 {[%clk 0:00:06]} 87. Rg3+ {[%clk 0:00:04]}  Kc4 {[%clk 0:00:06]} 88. Rg7 {[%clk 0:00:04]}  Re8 {[%clk 0:00:06]} 89. Rc7+ {[%clk 0:00:04]}  Kd3 {[%clk 0:00:06]} 90. Be5 {[%clk 0:00:04]}  Rf8+ {[%clk 0:00:06]} 91. Ke6 {[%clk 0:00:04]}  Rg8 {[%clk 0:00:06]} 92. Rc3+ {[%clk 0:00:04]}  Ke2 {[%clk 0:00:07]} 93. Rb3 {[%clk 0:00:04]}  Re8+ {[%clk 0:00:06]} 94. Kd5 {[%clk 0:00:04]}  Rd8+ {[%clk 0:00:07]} 95. Ke4 {[%clk 0:00:04]}  Re8 {[%clk 0:00:07]} 96. Rb2+ {[%clk 0:00:05]}  Ke1 {[%clk 0:00:08]} 97. Ra2 {[%clk 0:00:05]}  Re7 {[%clk 0:00:08]} 98. Rb2 {[%clk 0:00:02]}  Re8 {[%clk 0:00:08]} 99. Rh2 {[%clk 0:00:02]}  Re7 {[%clk 0:00:08]} 100. Kf4 {[%clk 0:00:03]}  Kd1 {[%clk 0:00:08]} 101. Bd4 {[%clk 0:00:03]}  Re2 {[%clk 0:00:09]} 102. Rh1+ {[%clk 0:00:03]}  Kc2 {[%clk 0:00:09]} 103. Be3 {[%clk 0:00:03]}  Kb3 {[%clk 0:00:08]} 104. Kf3 {[%clk 0:00:03]}  Rc2 {[%clk 0:00:08]} 105. Ke4 {[%clk 0:00:04]}  Rc8 {[%clk 0:00:09]} 106. Kd3 {[%clk 0:00:03]}  Rg8 {[%clk 0:00:08]} 107. Rb1+ {[%clk 0:00:04]}  Ka4 {[%clk 0:00:09]} 108. Bf4 {[%clk 0:00:04]}  Rg4 {[%clk 0:00:08]} 109. Bd6 {[%clk 0:00:02]}  Ka5 {[%clk 0:00:07]} 110. Bc5 {[%clk 0:00:02]}  Ka6 {[%clk 0:00:07]} 111. Kc3 {[%clk 0:00:03]}  Rh4 {[%clk 0:00:06]} 112. Rb6+ {[%clk 0:00:02]}  Ka5 {[%clk 0:00:06]} 113. Rb2 {[%clk 0:00:03]}  Ka6 {[%clk 0:00:06]} 114. Bd4 {[%clk 0:00:04]}  Rh6 {[%clk 0:00:06]} 115. Kc4 {[%clk 0:00:04]}  Rg6 {[%clk 0:00:06]} 116. Ra2+ {[%clk 0:00:03]}  Kb7 {[%clk 0:00:06]} 1/2-1/2


[Site "https://www.chess.com"]

[Event "Titled Tuesday Blitz November 07 Late 2023"]
[White "Pakleza, Zbigniew"]
[Black "Yeletsky, Ivan"]
[WhiteFideId "1119290"]
[BlackFideId "24180327"]
[WhiteElo "2739"]
[BlackElo "2932"]
[Result "1-0"]
[Round "11"]
[TimeControl "180+1"]
[Date "2023.11.07"]
[WhiteClock "0:00:02"]
[BlackClock "0:00:01"]
[Board "9"]

1. d4 {[%clk 0:03:00]}  Nf6 {[%clk 0:02:56]} 2. Nf3 {[%clk 0:03:01]}  d5 {[%clk 0:02:54]} 3. Bf4 {[%clk 0:03:01]}  e6 {[%clk 0:02:54]} 4. e3 {[%clk 0:03:01]}  Bd6 {[%clk 0:02:55]} 5. Bg3 {[%clk 0:03:02]}  O-O {[%clk 0:02:54]} 6. Nbd2 {[%clk 0:03:02]}  b6 {[%clk 0:02:54]} 7. c3 {[%clk 0:03:02]}  c5 {[%clk 0:02:53]} 8. Ne5 {[%clk 0:03:03]}  Qc7 {[%clk 0:02:51]} 9. f4 {[%clk 0:03:02]}  a5 {[%clk 0:02:39]} 10. a4 {[%clk 0:03:00]}  Nc6 {[%clk 0:02:33]} 11. Bb5 {[%clk 0:02:58]}  Ne7 {[%clk 0:02:29]} 12. Bh4 {[%clk 0:02:50]}  Ne4 {[%clk 0:01:53]} 13. Nxe4 {[%clk 0:02:39]}  dxe4 {[%clk 0:01:54]} 14. Bxe7 {[%clk 0:02:38]}  Qxe7 {[%clk 0:01:47]} 15. Nc4 {[%clk 0:02:28]}  Bc7 {[%clk 0:01:44]} 16. dxc5 {[%clk 0:02:22]}  bxc5 {[%clk 0:01:29]} 17. O-O {[%clk 0:01:57]}  Rd8 {[%clk 0:01:29]} 18. Qc2 {[%clk 0:01:52]}  Bb7 {[%clk 0:01:28]} 19. Rfd1 {[%clk 0:01:49]}  h5 {[%clk 0:01:04]} 20. Qe2 {[%clk 0:01:39]}  g6 {[%clk 0:00:59]} 21. g3 {[%clk 0:01:29]}  Rd5 {[%clk 0:00:40]} 22. Rd2 {[%clk 0:01:14]}  Rad8 {[%clk 0:00:39]} 23. Rad1 {[%clk 0:01:14]}  Kg7 {[%clk 0:00:39]} 24. Na3 {[%clk 0:00:51]}  h4 {[%clk 0:00:30]} 25. Bc4 {[%clk 0:00:31]}  hxg3 {[%clk 0:00:31]} 26. hxg3 {[%clk 0:00:26]}  Qf6 {[%clk 0:00:17]} 27. Bxd5 {[%clk 0:00:19]}  exd5 {[%clk 0:00:18]} 28. Nb5 {[%clk 0:00:18]}  Bb6 {[%clk 0:00:18]} 29. Kg2 {[%clk 0:00:12]}  d4 {[%clk 0:00:16]} 30. cxd4 {[%clk 0:00:06]}  cxd4 {[%clk 0:00:16]} 31. Nxd4 {[%clk 0:00:06]}  Rd5 {[%clk 0:00:08]} 32. Qg4 {[%clk 0:00:05]}  Rc5 {[%clk 0:00:06]} 33. Qh4 {[%clk 0:00:05]}  Qxh4 {[%clk 0:00:03]} 34. gxh4 {[%clk 0:00:06]}  Rc4 {[%clk 0:00:03]} 35. b3 {[%clk 0:00:06]}  Rc3 {[%clk 0:00:03]} 36. Kf2 {[%clk 0:00:05]}  Bc8 {[%clk 0:00:04]} 37. Rc2 {[%clk 0:00:02]}  Rd3 {[%clk 0:00:02]} 38. Rxd3 {[%clk 0:00:02]}  exd3 {[%clk 0:00:01]} 39. Rxc8 {[%clk 0:00:02]} 1-0


[Site "https://www.chess.com"]

[Event "Titled Tuesday Blitz November 07 Late 2023"]
[White "Bortnyk, Olexandr"]
[Black "Maksimovic, Bojan"]
[WhiteFideId "14120828"]
[BlackFideId "14408120"]
[WhiteElo "3024"]
[BlackElo "2756"]
[Result "0-1"]
[Round "11"]
[TimeControl "180+1"]
[Date "2023.11.07"]
[WhiteClock "0:00:06"]
[BlackClock "0:00:17"]
[Board "11"]

1. e4 {[%clk 0:03:00]}  g6 {[%clk 0:03:00]} 2. Bc4 {[%clk 0:02:50]}  Nf6 {[%clk 0:02:51]} 3. e5 {[%clk 0:02:49]}  d5 {[%clk 0:02:51]} 4. Bb3 {[%clk 0:02:50]}  Ng4 {[%clk 0:02:40]} 5. d4 {[%clk 0:02:49]}  c5 {[%clk 0:02:39]} 6. dxc5 {[%clk 0:02:38]}  Nxe5 {[%clk 0:02:31]} 7. Bf4 {[%clk 0:02:37]}  Nbc6 {[%clk 0:02:29]} 8. Bxd5 {[%clk 0:02:28]}  Bg7 {[%clk 0:02:01]} 9. Nc3 {[%clk 0:02:07]}  O-O {[%clk 0:01:54]} 10. Nge2 {[%clk 0:02:05]}  Qa5 {[%clk 0:01:50]} 11. O-O {[%clk 0:01:59]}  Qxc5 {[%clk 0:01:50]} 12. a3 {[%clk 0:01:53]}  Bg4 {[%clk 0:01:25]} 13. b4 {[%clk 0:01:51]}  Qb6 {[%clk 0:01:26]} 14. h3 {[%clk 0:01:49]}  Bxe2 {[%clk 0:01:23]} 15. Qxe2 {[%clk 0:01:50]}  Rac8 {[%clk 0:00:53]} 16. Na4 {[%clk 0:01:35]}  Qd4 {[%clk 0:00:53]} 17. Bxc6 {[%clk 0:01:25]}  Rxc6 {[%clk 0:00:29]} 18. Be3 {[%clk 0:01:20]}  Qe4 {[%clk 0:00:25]} 19. Nc5 {[%clk 0:01:17]}  Qc4 {[%clk 0:00:25]} 20. Rae1 {[%clk 0:01:06]}  b6 {[%clk 0:00:21]} 21. Nd3 {[%clk 0:00:58]}  Nxd3 {[%clk 0:00:17]} 22. cxd3 {[%clk 0:00:59]}  Qb3 {[%clk 0:00:17]} 23. d4 {[%clk 0:00:54]}  Qxa3 {[%clk 0:00:14]} 24. b5 {[%clk 0:00:55]}  Rc7 {[%clk 0:00:15]} 25. Bf4 {[%clk 0:00:51]}  Rd7 {[%clk 0:00:14]} 26. Ra1 {[%clk 0:00:48]}  Qb3 {[%clk 0:00:14]} 27. Be5 {[%clk 0:00:45]}  Qd5 {[%clk 0:00:14]} 28. Ra4 {[%clk 0:00:41]}  Rc8 {[%clk 0:00:14]} 29. Rfa1 {[%clk 0:00:40]}  Bxe5 {[%clk 0:00:14]} 30. dxe5 {[%clk 0:00:40]}  Rcc7 {[%clk 0:00:15]} 31. h4 {[%clk 0:00:37]}  h5 {[%clk 0:00:10]} 32. Qe3 {[%clk 0:00:31]}  Kg7 {[%clk 0:00:09]} 33. g4 {[%clk 0:00:27]}  hxg4 {[%clk 0:00:10]} 34. Rxg4 {[%clk 0:00:26]}  Qd3 {[%clk 0:00:10]} 35. Qf4 {[%clk 0:00:21]}  e6 {[%clk 0:00:07]} 36. Rg5 {[%clk 0:00:10]}  Rd4 {[%clk 0:00:05]} 37. Qf6+ {[%clk 0:00:10]}  Kg8 {[%clk 0:00:06]} 38. h5 {[%clk 0:00:10]}  Qh3 {[%clk 0:00:04]} 39. Rg3 {[%clk 0:00:05]}  Qxh5 {[%clk 0:00:04]} 40. Kg2 {[%clk 0:00:03]}  Qf5 {[%clk 0:00:04]} 41. Re1 {[%clk 0:00:01]}  Qxf6 {[%clk 0:00:04]} 42. exf6 {[%clk 0:00:01]}  Rf4 {[%clk 0:00:05]} 43. Rf3 {[%clk 0:00:02]}  Rxf3 {[%clk 0:00:05]} 44. Kxf3 {[%clk 0:00:03]}  Rc5 {[%clk 0:00:05]} 45. Ra1 {[%clk 0:00:03]}  Rxb5 {[%clk 0:00:05]} 46. Rxa7 {[%clk 0:00:03]}  Rf5+ {[%clk 0:00:06]} 47. Kg4 {[%clk 0:00:04]}  Rxf6 {[%clk 0:00:07]} 48. f4 {[%clk 0:00:04]}  Rf5 {[%clk 0:00:07]} 49. Rb7 {[%clk 0:00:04]}  b5 {[%clk 0:00:08]} 50. Rb6 {[%clk 0:00:05]}  Kg7 {[%clk 0:00:09]} 51. Rb7 {[%clk 0:00:05]}  Rd5 {[%clk 0:00:09]} 52. Rb6 {[%clk 0:00:06]}  Kf6 {[%clk 0:00:10]} 53. Rb7 {[%clk 0:00:07]}  g5 {[%clk 0:00:11]} 54. fxg5+ {[%clk 0:00:06]}  Rxg5+ {[%clk 0:00:11]} 55. Kf4 {[%clk 0:00:07]}  Rd5 {[%clk 0:00:12]} 56. Ke4 {[%clk 0:00:08]}  Kg6 {[%clk 0:00:13]} 57. Kf4 {[%clk 0:00:08]}  Kf6 {[%clk 0:00:13]} 58. Ke4 {[%clk 0:00:08]}  Rh5 {[%clk 0:00:14]} 59. Kf4 {[%clk 0:00:09]}  b4 {[%clk 0:00:14]} 60. Kg4 {[%clk 0:00:09]}  Rg5+ {[%clk 0:00:14]} 61. Kf4 {[%clk 0:00:10]}  Rh5 {[%clk 0:00:14]} 62. Kg4 {[%clk 0:00:10]}  Rg5+ {[%clk 0:00:14]} 63. Kf4 {[%clk 0:00:11]}  e5+ {[%clk 0:00:15]} 64. Kf3 {[%clk 0:00:08]}  Rf5+ {[%clk 0:00:15]} 65. Ke3 {[%clk 0:00:03]}  Rf4 {[%clk 0:00:16]} 66. Kd3 {[%clk 0:00:02]}  Ke6 {[%clk 0:00:17]} 67. Rb6+ {[%clk 0:00:02]}  Kf5 {[%clk 0:00:16]} 68. Ke3 {[%clk 0:00:03]}  f6 {[%clk 0:00:17]} 69. Kd3 {[%clk 0:00:03]}  Rh4 {[%clk 0:00:17]} 70. Ke3 {[%clk 0:00:03]}  Rh3+ {[%clk 0:00:17]} 71. Kf2 {[%clk 0:00:03]}  b3 {[%clk 0:00:18]} 72. Ke2 {[%clk 0:00:04]}  Kg5 {[%clk 0:00:18]} 73. Kf2 {[%clk 0:00:05]}  f5 {[%clk 0:00:18]} 74. Kg2 {[%clk 0:00:06]}  Rc3 {[%clk 0:00:18]} 75. Rxb3 {[%clk 0:00:06]}  Rxb3 {[%clk 0:00:17]} 0-1


[Site "https://www.chess.com"]

[Event "Titled Tuesday Blitz November 07 Late 2023"]
[White "Ibarra Jerez, Jose Carlos"]
[Black "Hambleton, Aman"]
[WhiteFideId "2226332"]
[BlackFideId "2606577"]
[WhiteElo "2992"]
[BlackElo "2747"]
[Result "0-1"]
[Round "11"]
[TimeControl "180+1"]
[Date "2023.11.07"]
[WhiteClock "0:00:00"]
[BlackClock "0:00:04"]
[Board "12"]

1. e4 {[%clk 0:03:00]}  c5 {[%clk 0:02:59]} 2. Nf3 {[%clk 0:03:00]}  e6 {[%clk 0:02:59]} 3. d4 {[%clk 0:02:59]}  cxd4 {[%clk 0:03:00]} 4. Nxd4 {[%clk 0:02:59]}  Nc6 {[%clk 0:03:00]} 5. Nc3 {[%clk 0:02:59]}  Qc7 {[%clk 0:02:58]} 6. g4 {[%clk 0:02:56]}  a6 {[%clk 0:02:54]} 7. Be3 {[%clk 0:02:54]}  Ne5 {[%clk 0:02:42]} 8. f4 {[%clk 0:02:32]}  Nc4 {[%clk 0:02:40]} 9. Bxc4 {[%clk 0:02:27]}  Qxc4 {[%clk 0:02:41]} 10. Qd2 {[%clk 0:02:06]}  b5 {[%clk 0:02:36]} 11. Nb3 {[%clk 0:01:50]}  Nf6 {[%clk 0:02:24]} 12. O-O-O {[%clk 0:01:39]}  b4 {[%clk 0:00:29]} 13. Na4 {[%clk 0:01:36]}  Qb5 {[%clk 0:00:05]} 14. Nb6 {[%clk 0:01:34]}  Rb8 {[%clk 0:00:05]} 15. Nxc8 {[%clk 0:00:51]}  Rxc8 {[%clk 0:00:06]} 16. Qg2 {[%clk 0:00:51]}  Qc6 {[%clk 0:00:02]} 17. Rd4 {[%clk 0:00:22]}  d5 {[%clk 0:00:01]} 18. e5 {[%clk 0:00:18]}  Ne4 {[%clk 0:00:01]} 19. Kb1 {[%clk 0:00:16]}  Nc5 {[%clk 0:00:01]} 20. Rdd1 {[%clk 0:00:11]}  Nxb3 {[%clk 0:00:01]} 21. cxb3 {[%clk 0:00:12]}  Be7 {[%clk 0:00:01]} 22. f5 {[%clk 0:00:12]}  O-O {[%clk 0:00:01]} 23. Bd4 {[%clk 0:00:12]}  Rfd8 {[%clk 0:00:01]} 24. f6 {[%clk 0:00:09]}  Bc5 {[%clk 0:00:01]} 25. Qd2 {[%clk 0:00:07]}  Bxd4 {[%clk 0:00:01]} 26. Qxd4 {[%clk 0:00:06]}  Qc2+ {[%clk 0:00:01]} 27. Ka1 {[%clk 0:00:07]}  a5 {[%clk 0:00:01]} 28. Qe3 {[%clk 0:00:04]}  h6 {[%clk 0:00:01]} 29. fxg7 {[%clk 0:00:04]}  Kxg7 {[%clk 0:00:02]} 30. g5 {[%clk 0:00:04]}  h5 {[%clk 0:00:02]} 31. Qf4 {[%clk 0:00:04]}  Qe4 {[%clk 0:00:02]} 32. Qf6+ {[%clk 0:00:04]}  Kg8 {[%clk 0:00:02]} 33. g6 {[%clk 0:00:04]}  fxg6 {[%clk 0:00:03]} 34. Qxe6+ {[%clk 0:00:04]}  Kh7 {[%clk 0:00:03]} 35. Rhg1 {[%clk 0:00:04]}  Rg8 {[%clk 0:00:02]} 36. Qd7+ {[%clk 0:00:04]}  Kh6 {[%clk 0:00:02]} 37. e6 {[%clk 0:00:03]}  Rce8 {[%clk 0:00:02]} 38. Qxd5 {[%clk 0:00:03]}  Qxd5 {[%clk 0:00:02]} 39. Rxd5 {[%clk 0:00:04]}  Rxe6 {[%clk 0:00:03]} 40. Rxa5 {[%clk 0:00:04]}  Rge8 {[%clk 0:00:04]} 41. a3 {[%clk 0:00:04]}  Re1+ {[%clk 0:00:04]} 42. Rxe1 {[%clk 0:00:04]}  Rxe1+ {[%clk 0:00:05]} 43. Ka2 {[%clk 0:00:05]}  g5 {[%clk 0:00:03]} 44. Ra6+ {[%clk 0:00:03]}  Kg7 {[%clk 0:00:03]} 45. a4 {[%clk 0:00:04]}  g4 {[%clk 0:00:03]} 46. a5 {[%clk 0:00:04]}  Re5 {[%clk 0:00:03]} 47. Kb1 {[%clk 0:00:03]}  h4 {[%clk 0:00:03]} 48. Rb6 {[%clk 0:00:04]}  g3 {[%clk 0:00:03]} 49. hxg3 {[%clk 0:00:04]}  h3 {[%clk 0:00:02]} 50. Rxb4 {[%clk 0:00:04]}  Rh5 {[%clk 0:00:02]} 51. Rb7+ {[%clk 0:00:02]}  Kg6 {[%clk 0:00:02]} 52. Rb6+ {[%clk 0:00:02]}  Kf7 {[%clk 0:00:03]} 53. Rb7+ {[%clk 0:00:03]}  Ke6 {[%clk 0:00:03]} 54. g4 {[%clk 0:00:02]}  h2 {[%clk 0:00:02]} 55. gxh5 {[%clk 0:00:02]}  h1=Q+ {[%clk 0:00:03]} 56. Ka2 {[%clk 0:00:00]}  Qxb7 {[%clk 0:00:04]} 0-1


[Site "https://www.chess.com"]

[Event "Titled Tuesday Blitz November 07 Late 2023"]
[White "Makhnev, Denis"]
[Black "Zeltsan, Joseph"]
[WhiteFideId "13707647"]
[BlackFideId "30932980"]
[WhiteElo "2947"]
[BlackElo "2704"]
[Result "1-0"]
[Round "11"]
[TimeControl "180+1"]
[Date "2023.11.07"]
[WhiteClock "0:02:07"]
[BlackClock "0:00:09"]
[Board "13"]

1. f4 {[%clk 0:03:00]}  d5 {[%clk 0:02:56]} 2. Nf3 {[%clk 0:03:01]}  Nf6 {[%clk 0:02:57]} 3. g3 {[%clk 0:03:01]}  c5 {[%clk 0:02:58]} 4. Bg2 {[%clk 0:03:02]}  Nc6 {[%clk 0:02:58]} 5. O-O {[%clk 0:03:03]}  g6 {[%clk 0:02:39]} 6. d3 {[%clk 0:03:03]}  Bg7 {[%clk 0:02:39]} 7. Qe1 {[%clk 0:03:03]}  O-O {[%clk 0:02:38]} 8. e4 {[%clk 0:03:02]}  dxe4 {[%clk 0:02:33]} 9. dxe4 {[%clk 0:03:02]}  e5 {[%clk 0:02:34]} 10. f5 {[%clk 0:03:01]}  gxf5 {[%clk 0:02:33]} 11. exf5 {[%clk 0:03:01]}  Bxf5 {[%clk 0:02:34]} 12. Na3 {[%clk 0:03:02]}  Bg6 {[%clk 0:02:31]} 13. Bg5 {[%clk 0:03:01]}  h6 {[%clk 0:02:29]} 14. Bh4 {[%clk 0:03:01]}  Qc7 {[%clk 0:02:23]} 15. Nd2 {[%clk 0:02:53]}  Nh7 {[%clk 0:02:07]} 16. c3 {[%clk 0:02:53]}  Ng5 {[%clk 0:02:04]} 17. Ndc4 {[%clk 0:02:47]}  Rfe8 {[%clk 0:01:56]} 18. Nb5 {[%clk 0:02:46]}  Qd7 {[%clk 0:01:42]} 19. Rd1 {[%clk 0:02:44]}  Qg4 {[%clk 0:01:42]} 20. Ne3 {[%clk 0:02:42]}  Qa4 {[%clk 0:01:38]} 21. Nc7 {[%clk 0:02:42]}  Qxa2 {[%clk 0:01:31]} 22. Nxa8 {[%clk 0:02:42]}  Rxa8 {[%clk 0:01:31]} 23. Qf2 {[%clk 0:02:38]}  e4 {[%clk 0:01:25]} 24. Nd5 {[%clk 0:02:26]}  Ne5 {[%clk 0:01:00]} 25. Bxg5 {[%clk 0:02:26]}  hxg5 {[%clk 0:00:55]} 26. Ne7+ {[%clk 0:02:26]}  Kh7 {[%clk 0:00:52]} 27. Nxg6 {[%clk 0:02:27]}  fxg6 {[%clk 0:00:53]} 28. Bxe4 {[%clk 0:02:27]}  Rf8 {[%clk 0:00:53]} 29. Qe2 {[%clk 0:02:26]}  Rxf1+ {[%clk 0:00:49]} 30. Rxf1 {[%clk 0:02:26]}  Kh6 {[%clk 0:00:50]} 31. Bxb7 {[%clk 0:02:25]}  c4 {[%clk 0:00:45]} 32. Be4 {[%clk 0:02:24]}  Qa5 {[%clk 0:00:43]} 33. Kg2 {[%clk 0:02:22]}  Qb6 {[%clk 0:00:41]} 34. h4 {[%clk 0:02:21]}  gxh4 {[%clk 0:00:38]} 35. Qd2+ {[%clk 0:02:12]}  Kh7 {[%clk 0:00:27]} 36. Qg5 {[%clk 0:02:12]}  Qxb2+ {[%clk 0:00:15]} 37. Kh3 {[%clk 0:02:12]}  Qxc3 {[%clk 0:00:14]} 38. Qxh4+ {[%clk 0:02:11]}  Bh6 {[%clk 0:00:14]} 39. Rb1 {[%clk 0:02:06]}  Nf7 {[%clk 0:00:11]} 40. Rb7 {[%clk 0:02:07]}  Kg8 {[%clk 0:00:09]} 41. Bd5 {[%clk 0:02:07]} 1-0


[Site "https://www.chess.com"]